bitfinex/quotes_SOLUSD_20220208
["timestamp","ask_amount","ask_price","bid_price","bid_amount"]
[1644309290249,89.69279611,114.51,114.35,0.49440484]
[1644309290450,157.17,114.5,114.35,0.49440484]
[1644309290646,13.1172,114.46,114.35,0.49440484]
[1644309290850,13.1172,114.46,114.32,46.85982838]
[1644309290851,12.57,114.45,114.32,46.85982838]
[1644309291046,12.57,114.45,114.32,0.35492838]
[1644309291047,171.84775549,114.45,114.32,0.35492838]
[1644309291246,186.32906643,114.45,114.32,0.35492838]
[1644309291447,157.17,114.43,114.32,0.35492838]
[1644309291652,165.181,114.43,114.32,0.35492838]
[1644309291847,14.67775549,114.42,114.32,0.35492838]
[1644309292047,19.04875549,114.42,114.32,0.35492838]
[1644309292247,39.42252551,114.42,114.32,0.35492838]
[1644309292449,2.10775549,114.41,114.32,0.35492838]
[1644309292651,12.57,114.4,114.32,0.35492838]
[1644309293054,23.62752551,114.4,114.32,0.35492838]
[1644309293251,23.62752551,114.4,114.28,1.4245015]
[1644309294050,13.1249,114.39,114.28,1.4245015]
[1644309294253,12.57,114.38,114.28,1.4245015]
[1644309294755,21.51977002,114.38,114.28,1.4245015]
[1644309294951,23.62752551,114.38,114.28,1.4245015]
[1644309295151,180.79752551,114.38,114.28,1.4245015]
[1644309295355,13.1272,114.35,114.28,1.4245015]
[1644309295561,13.1272,114.35,114.29,1.84749557]
[1644309295756,1.18708442,114.39,114.29,2.09749557]
[1644309295955,12.57,114.38,114.29,14.06649557]
[1644309296153,1.18708442,114.39,114.3,1.84869169]
[1644309296452,1.18708442,114.39,114.3,115.19869169]
[1644309296654,1.18708442,114.39,114.31,12.57]
[1644309296856,0.00708442,114.39,114.31,14.66869169]
[1644309297154,6.42561,114.48,114.32,1.84869169]
[1644309297352,6.42561,114.48,114.33,12.57]
[1644309297557,6.42561,114.48,114.34,4.37]
[1644309297755,6.42561,114.48,114.35,12.57]
[1644309297957,6.42561,114.48,114.35,23.615]
[1644309298157,8.53336549,114.48,114.35,31.71369169]
[1644309298354,8.78336549,114.48,114.35,23.865]
[1644309299457,21.89446549,114.48,114.35,23.865]
[1644309299855,21.89446549,114.48,114.35,12.82]
[1644309300760,21.89446549,114.48,114.35,12.57]
[1644309300956,48.94755776,114.48,114.33,24.738]
[1644309301155,69.64791099,114.48,114.3,24.1169]
[1644309302058,69.64791099,114.48,114.28,4.37]
[1644309302256,157.17,114.44,114.28,4.37]
[1644309302457,13.1242,114.4,114.28,4.37]
[1644309302657,6.42561,114.39,114.28,4.37]
[1644309302858,18.99561,114.39,114.28,4.37]
[1644309303057,21.10336549,114.39,114.28,4.37]
[1644309303259,2.10775549,114.38,114.28,4.37]
[1644309303458,13.1264,114.36,114.25,0.47070408]
[1644309303656,32.12201,114.36,114.25,0.47070408]
[1644309304258,32.12201,114.36,114.26,1.85931626]
[1644309304456,32.12201,114.36,114.25,0.47070408]
[1644309305258,34.22976549,114.36,114.25,0.47070408]
[1644309308263,32.12201,114.36,114.25,0.47070408]
[1644309308464,34.22976549,114.36,114.25,0.47070408]
[1644309309063,42.44575774,114.36,114.25,0.47070408]
[1644309309667,50.50324001,114.36,114.25,0.47070408]
[1644309309885,68.71660099,114.36,114.25,0.47070408]
[1644309310466,68.46660099,114.36,114.25,0.47070408]
[1644309310667,36.02014774,114.36,114.25,0.47070408]
[1644309311071,33.91239225,114.36,114.25,0.47070408]
[1644309311270,25.6964,114.36,114.25,0.47070408]
[1644309311467,27.80415549,114.36,114.25,0.47070408]
[1644309311667,25.6964,114.36,114.25,0.47070408]
[1644309312067,27.80415549,114.36,114.25,0.47070408]
[1644309312666,34.22976549,114.36,114.25,0.47070408]
[1644309313067,32.12201,114.36,114.26,1.86994003]
[1644309313468,32.12201,114.36,114.25,0.47070408]
[1644309313675,19.55201,114.36,114.26,24.667]
[1644309313868,6.42561,114.36,114.26,24.667]
[1644309314067,6.42561,114.36,114.27,1.87525291]
[1644309314268,12.57,114.47,114.28,12.57]
[1644309314468,6.42561,114.46,114.28,12.57]
[1644309314670,6.42561,114.46,114.29,48.75975291]
[1644309314873,6.42561,114.46,114.3,12.57]
[1644309315070,13.1157,114.43,114.3,20.44525291]
[1644309315270,19.54131,114.43,114.31,1.87525291]
[1644309315472,19.54131,114.43,114.32,12.57]
[1644309315869,43.7206,114.46,114.32,12.82]
[1644309315870,44.83191,114.46,114.32,12.82]
[1644309316072,12.57,114.46,114.32,12.82]
[1644309316274,2.10775549,114.45,114.32,12.82]
[1644309316470,13.1157,114.43,114.32,14.69525291]
[1644309317071,13.1157,114.43,114.32,14.44525291]
[1644309317271,13.1157,114.43,114.32,12.57]
[1644309317693,13.1157,114.43,114.32,14.44525291]
[1644309317893,2.10775549,114.42,114.32,14.44525291]
[1644309318093,13.1212,114.39,114.32,12.57]
[1644309318293,13.1212,114.39,114.32,14.69525291]
[1644309318697,12.57,114.45,114.32,14.69525291]
[1644309319296,13.1179,114.41,114.32,14.69525291]
[1644309319896,13.1179,114.41,114.32,12.57]
[1644309320498,13.1179,114.41,114.32,6.43211]
[1644309320904,0.0079,114.41,114.32,6.43211]
[1644309321099,4.371,114.51,114.35,0.32124432]
[1644309321300,4.37,114.54,114.36,12.57]
[1644309321504,2.31640433,114.56,114.36,31.73017342]
[1644309321505,4.368,114.55,114.36,31.73017342]
[1644309321700,12.57,114.58,114.4,0.30436172]
[1644309321897,12.57,114.59,114.41,12.57]
[1644309322104,43.6766,114.57,114.41,85.65917342]
[1644309322297,43.6766,114.57,114.42,23.52617342]
[1644309322497,43.6766,114.57,114.43,12.57]
[1644309322797,4.367,114.62,114.43,206.13617342]
[1644309322998,303.01246369,114.64,114.44,222.31707623]
[1644309323197,43.6653,114.6,114.45,12.57]
[1644309323401,43.6653,114.6,114.45,31.73587623]
[1644309323598,26.50198205,114.63,114.45,12.57]
[1644309323800,13.0994,114.57,114.45,12.57]
[1644309324800,13.0994,114.57,114.45,14.45095572]
[1644309325002,13.0994,114.57,114.45,14.70095572]
[1644309325203,13.0994,114.57,114.45,12.82]
[1644309325601,13.0994,114.57,114.45,21.12575572]
[1644309326003,13.0994,114.57,114.45,20.87575572]
[1644309326202,13.0994,114.57,114.45,19.2448]
[1644309327905,13.0994,114.57,114.45,6.4248]
[1644309328106,13.3494,114.57,114.42,37.76295572]
[1644309328404,13.3494,114.57,114.43,10.49]
[1644309328607,13.3494,114.57,114.44,6.42536]
[1644309328807,13.3494,114.57,114.45,10.49]
[1644309329205,13.3494,114.57,114.45,17.1648]
[1644309330106,13.0994,114.57,114.45,34.14879236]
[1644309330309,13.0971,114.59,114.46,1.88095572]
[1644309330507,13.0971,114.59,114.46,54.76999572]
[1644309330707,13.0971,114.59,114.47,27.72399236]
[1644309330907,13.0971,114.59,114.47,29.60494808]
[1644309331106,10.49,114.65,114.48,19.11494808]
[1644309331307,10.49,114.65,114.49,10.49]
[1644309331507,10.49,114.65,114.49,34.5726]
[1644309331710,10.49,114.65,114.49,34.8226]
[1644309332205,10.49,114.65,114.49,40.8226]
[1644309332406,13.093,114.63,114.49,65.14929236]
[1644309332607,4.364,114.7,114.5,25.0129338]
[1644309332806,4.364,114.7,114.51,33.4055]
[1644309333008,50.4504,114.71,114.51,52.51590384]
[1644309333306,4.362,114.71,114.52,19.11040384]
[1644309333506,13.0852,114.7,114.56,13.0843]
[1644309333707,13.0852,114.7,114.57,10.49]
[1644309333908,13.0852,114.7,114.57,12.36641148]
[1644309334108,13.0852,114.7,114.57,18.61641148]
[1644309334310,4.361,114.76,114.58,2.18600209]
[1644309334508,74.02526433,114.81,114.59,10.49]
[1644309334509,0.50809624,114.78,114.59,10.49]
[1644309334711,13.58639624,114.78,114.59,201.09720384]
[1644309335009,13.58639624,114.78,114.6,19.11040384]
[1644309335210,13.58639624,114.78,114.61,10.49]
[1644309335412,13.58639624,114.78,114.61,29.60040384]
[1644309335611,13.58639624,114.78,114.61,35.85040384]
[1644309335810,13.58639624,114.78,114.61,33.97399236]
[1644309336011,13.58639624,114.78,114.61,35.85040384]
[1644309336211,13.58639624,114.78,114.62,17.23399236]
[1644309336413,13.58639624,114.78,114.63,10.49]
[1644309336813,13.58639624,114.78,114.64,1.87641148]
[1644309336814,0.50809624,114.78,114.64,1.87641148]
[1644309337013,0.50809624,114.78,114.65,10.49]
[1644309337212,0.50809624,114.78,114.65,33.97399236]
[1644309337412,0.50809624,114.78,114.66,1.87641148]
[1644309337612,0.50809624,114.78,114.67,10.49]
[1644309337813,0.50809624,114.78,114.67,10.74]
[1644309338016,0.50809624,114.78,114.68,1.87641148]
[1644309338213,0.50809624,114.78,114.69,10.49]
[1644309338515,0.50809624,114.78,114.69,22.235]
[1644309338715,0.50809624,114.78,114.69,28.485]
[1644309338915,0.50809624,114.78,114.7,1.87641148]
[1644309339115,0.50809624,114.78,114.71,10.49]
[1644309339319,0.00608512,114.81,114.72,58.0]
[1644309339517,0.00217024,114.81,114.76,131.45796985]
[1644309339816,0.00217024,114.81,114.77,141.63]
[1644309340016,0.00217024,114.81,114.78,72.165]
[1644309340218,0.00217024,114.81,114.79,10.49]
[1644309340417,0.00217024,114.81,114.79,16.55439994]
[1644309340618,0.00217024,114.81,114.79,16.80439994]
[1644309342016,0.00217024,114.81,114.8,1.87641148]
[1644309342217,0.00217024,114.81,114.8,18.61641148]
[1644309342417,0.00217024,114.81,114.8,16.74]
[1644309342616,0.00217024,114.81,114.8,10.74]
[1644309343017,0.00217024,114.81,114.8,0.25]
[1644309343418,0.00217024,114.81,114.8,19.2809594]
[1644309343640,0.00217024,114.81,114.8,35.5209594]
[1644309343819,0.00778474,114.81,114.8,35.7709594]
[1644309344018,0.00212522,114.81,114.8,38.80315937]
[1644309345418,0.00212522,114.81,114.8,36.67674789]
[1644309345618,0.00212522,114.81,114.8,13.52219997]
[1644309346819,0.00212522,114.81,114.8,15.38961828]
[1644309347021,0.00212522,114.81,114.8,38.5441662]
[1644309347420,0.00212522,114.81,114.8,41.57636617]
[1644309347819,0.00212522,114.81,114.8,41.82636617]
[1644309348519,0.00212522,114.81,114.8,24.67181825]
[1644309348927,0.00212522,114.81,114.8,22.80439994]
[1644309349323,0.00655574,114.81,114.8,22.80439994]
[1644309349526,0.00655574,114.81,114.8,40.67760783]
[1644309351246,0.00655574,114.81,114.8,47.08281783]
[1644309351447,0.00655574,114.81,114.8,37.20880983]
[1644309352849,0.00655574,114.81,114.8,37.45880983]
[1644309353149,0.00655574,114.81,114.8,52.49680983]
[1644309353950,0.00655574,114.81,114.8,85.13997467]
[1644309354451,0.02990951,114.94,114.8,76.10197467]
[1644309354655,0.02990951,114.94,114.8,75.85197467]
[1644309354853,0.02990951,114.94,114.8,58.88021218]
[1644309355052,0.02990951,114.94,114.8,42.86990194]
[1644309355657,0.02990951,114.94,114.8,44.7237885]
[1644309355851,0.02990951,114.94,114.81,16.01031024]
[1644309356052,0.02990951,114.94,114.82,10.49]
[1644309356251,0.02990951,114.94,114.82,18.7390061]
[1644309356552,0.02990951,114.94,114.83,1.8449061]
[1644309356752,0.19283383,114.95,114.84,16.89298]
[1644309356952,0.02990951,114.94,114.84,25.07598]
[1644309357156,0.16292432,114.95,114.85,1.8449061]
[1644309357352,0.19283383,114.95,114.86,10.49]
[1644309357551,0.16292432,114.95,114.86,10.49]
[1644309357752,0.16292432,114.95,114.87,1.8449061]
[1644309357953,0.16292432,114.95,114.87,12.3349061]
[1644309358153,0.16292432,114.95,114.87,18.5849061]
[1644309358353,0.16292432,114.95,114.88,1.8449061]
[1644309358554,0.16292432,114.95,114.89,10.49]
[1644309358854,0.16292432,114.95,114.89,10.74]
[1644309359054,0.16292432,114.95,114.89,16.74]
[1644309359457,0.16292432,114.95,114.89,10.74]
[1644309359659,0.16292432,114.95,114.89,25.554]
[1644309359856,0.16292432,114.95,114.89,27.39441495]
[1644309360158,0.16292432,114.95,114.9,16.01031024]
[1644309360355,0.16292432,114.95,114.91,10.49]
[1644309360757,0.16292432,114.95,114.91,16.74]
[1644309361655,0.16292432,114.95,114.91,10.74]
[1644309362054,0.16292432,114.95,114.91,16.74]
[1644309362555,0.551666,114.98,114.93,79.0]
[1644309362556,0.32584864,114.98,114.93,79.0]
[1644309362755,0.32584864,114.98,114.94,10.49]
[1644309363054,0.32584864,114.98,114.94,27.03180042]
[1644309363256,0.32584864,114.98,114.95,14.71031024]
[1644309363456,0.32584864,114.98,114.96,12.93039194]
[1644309363656,0.32584864,114.98,114.96,18.93039194]
[1644309363857,0.00584864,114.98,114.96,19.18039194]
[1644309364057,0.02990951,115.1,114.96,46.29319236]
[1644309364256,0.02990951,115.1,114.97,0.32095248]
[1644309364458,0.02990951,115.11,114.97,0.32095248]
[1644309364656,0.02990951,115.09,114.98,27.03180042]
[1644309364860,0.00910834,115.04,114.98,73.90230042]
[1644309365059,0.00910834,115.04,114.99,16.54180042]
[1644309365257,0.00910834,115.04,114.99,24.69280042]
[1644309365456,0.00910834,115.04,115.0,12.32149018]
[1644309365658,0.00910834,115.04,115.0,18.32149018]
[1644309365856,0.00910834,115.04,115.0,18.57149018]
[1644309366057,0.00910834,115.04,115.0,64.66429018]
[1644309366458,0.00910834,115.04,115.0,62.8328]
[1644309366659,0.00910834,115.04,115.0,56.8328]
[1644309366859,0.00910834,115.04,115.0,33.3905]
[1644309367260,0.00910834,115.04,115.0,43.9085]
[1644309367663,0.00910834,115.04,115.01,1.83149018]
[1644309367859,0.00910834,115.04,115.02,10.49]
[1644309368059,0.00910834,115.04,115.02,12.93039194]
[1644309368358,0.00910834,115.04,115.02,19.18039194]
[1644309368760,0.00910834,115.04,115.02,13.18039194]
[1644309369964,0.00910834,115.04,115.02,12.93039194]
[1644309370163,3.62400799,115.03,114.91,4.346]
[1644309370363,3.6539175,115.03,114.93,10.49]
[1644309370763,3.62400799,115.03,114.93,10.49]
[1644309370964,3.62400799,115.03,114.93,25.20031024]
[1644309371364,3.62400799,115.03,114.93,33.0298642]
[1644309371762,3.62400799,115.03,114.93,33.2798642]
[1644309372363,3.62400799,115.03,114.93,31.20031024]
[1644309372963,3.62400799,115.03,114.94,1.82955396]
[1644309373164,3.62400799,115.03,114.95,10.49]
[1644309373364,3.62400799,115.03,114.95,35.51531024]
[1644309373564,0.59180802,115.03,114.96,16.5398642]
[1644309373765,0.59180802,115.03,114.97,10.49]
[1644309373963,0.40910834,115.04,114.97,27.0298642]
[1644309374164,0.40910834,115.04,114.97,33.2798642]
[1644309374965,0.40910834,115.04,114.98,1.82955396]
[1644309375166,0.40910834,115.04,114.99,10.49]
[1644309375365,0.02990951,115.11,114.99,25.45031024]
[1644309375567,6.02990951,115.12,115.0,16.5398642]
[1644309375765,0.02990951,115.11,115.01,10.49]
[1644309375966,6.02990951,115.12,115.01,69.99635396]
[1644309376166,6.0,115.12,115.01,76.24635396]
[1644309376366,0.02990951,115.13,115.01,83.4636642]
[1644309376569,0.46626953,115.14,115.02,1.82955396]
[1644309376767,0.02990951,115.13,115.03,10.49]
[1644309376966,0.46626953,115.14,115.03,25.20031024]
[1644309377166,0.43636002,115.14,115.04,16.5398642]
[1644309377366,0.43636002,115.14,115.05,10.49]
[1644309377567,0.43636002,115.14,115.05,33.0298642]
[1644309377769,0.43636002,115.14,115.05,33.2798642]
[1644309378867,0.43636002,115.14,115.05,46.3073642]
[1644309379367,0.43636002,115.14,115.06,1.82955396]
[1644309379567,0.43636002,115.14,115.07,10.49]
[1644309379767,0.43636002,115.14,115.07,19.787]
[1644309380067,0.43636002,115.14,115.07,25.787]
[1644309380667,0.43636002,115.14,115.07,40.49731024]
[1644309381970,0.43636002,115.14,115.07,25.787]
[1644309382169,0.43636002,115.14,115.07,10.74]
[1644309382569,0.43636002,115.14,115.07,10.49]
[1644309384172,0.43636002,115.14,115.03,22.9049]
[1644309384173,2.54411551,115.14,115.03,22.9049]
[1644309384376,0.43636002,115.14,115.03,22.9049]
[1644309384974,0.43636002,115.14,115.03,29.29731]
[1644309385375,2.54411551,115.14,115.03,29.29731]
[1644309385572,2.54411551,115.14,115.03,6.39241]
[1644309386075,0.43636002,115.14,115.03,6.39241]
[1644309386474,2.75276435,115.14,115.03,6.39241]
[1644309386674,2.75276435,115.14,115.03,6.64241]
[1644309386875,13.0365,115.13,115.03,6.64241]
[1644309387878,0.46626953,115.14,115.03,6.64241]
[1644309388076,0.43636002,115.14,115.03,6.64241]
[1644309388276,0.43636002,115.14,115.03,17.13241]
[1644309388476,0.43636002,115.14,115.03,23.13241]
[1644309389076,0.43636002,115.14,115.03,16.74]
[1644309390182,0.43636002,115.14,115.03,31.45031024]
[1644309390381,0.43636002,115.14,115.03,33.27098697]
[1644309392698,0.43636002,115.14,115.03,46.29968697]
[1644309393899,0.43636002,115.14,115.03,46.04968697]
[1644309394099,0.43636002,115.14,115.03,52.44209697]
[1644309395201,0.43636002,115.14,115.03,52.69209697]
[1644309397602,0.43636002,115.14,115.03,52.44209697]
[1644309397803,0.43636002,115.14,115.03,44.62142024]
[1644309398006,0.43636002,115.14,115.03,31.59272024]
[1644309399104,0.43636002,115.14,115.03,39.40896896]
[1644309399506,0.43636002,115.14,115.03,39.65896896]
[1644309400411,2.75276435,115.14,115.03,39.65896896]
[1644309401211,0.43636002,115.14,115.03,39.65896896]
[1644309401811,2.75276435,115.14,115.03,52.68906896]
[1644309402412,0.43636002,115.14,115.03,52.68906896]
[1644309403613,1.17489359,115.11,115.03,52.68906896]
[1644309405016,1.17489359,115.12,115.03,52.68906896]
[1644309405823,1.17489359,115.12,115.03,62.28306896]
[1644309406619,1.17489359,115.13,115.03,66.62706896]
[1644309407520,1.17489359,115.13,115.03,197.76706896]
[1644309408017,0.46626953,115.14,115.04,133.0]
[1644309408217,1.2192297,115.16,115.09,13.0199]
[1644309408419,0.03017288,115.15,115.1,10.49]
[1644309408617,0.5495534,115.21,115.11,45.0]
[1644309408817,0.5495534,115.21,115.12,10.49]
[1644309409018,0.5495534,115.21,115.12,21.074]
[1644309409224,0.5495534,115.21,115.12,43.85055896]
[1644309409417,0.5495534,115.21,115.13,1.81624872]
[1644309409617,0.5495534,115.21,115.14,23.5087]
[1644309409817,0.5495534,115.21,115.14,23.7587]
[1644309410017,0.5495534,115.21,115.15,1.81624872]
[1644309410217,0.5495534,115.21,115.16,10.49]
[1644309410420,0.20545546,115.24,115.16,10.49]
[1644309410617,0.20545546,115.24,115.17,1.82157517]
[1644309410818,0.20545546,115.24,115.19,13.0116]
[1644309411022,0.20545546,115.24,115.2,10.49]
[1644309411221,0.20545546,115.24,115.2,10.74]
[1644309411422,0.20545546,115.24,115.2,16.74]
[1644309411621,0.20545546,115.24,115.2,10.74]
[1644309412022,0.20545546,115.24,115.2,10.49]
[1644309412321,0.20545546,115.24,115.17,10.49]
[1644309412528,0.20545546,115.24,115.18,6.38408]
[1644309413529,0.20545546,115.24,115.19,10.49]
[1644309413727,0.20545546,115.24,115.19,16.87353]
[1644309414130,0.20545546,115.24,115.19,17.12353]
[1644309414732,0.20545546,115.24,115.19,6.38353]
[1644309415730,0.20545546,115.24,115.16,10.49]
[1644309415929,0.20545546,115.24,115.16,16.87519]
[1644309417029,43.70876928,115.27,115.17,147.49003246]
[1644309417030,0.00076928,115.27,115.17,147.49003246]
[1644309417230,0.00076928,115.27,115.22,131.14]
[1644309417430,0.00076928,115.27,115.23,10.49]
[1644309417630,0.00076928,115.27,115.23,16.49]
[1644309417832,0.00076928,115.27,115.23,16.74]
[1644309418031,0.00076928,115.27,115.24,1.82688334]
[1644309418233,0.00076928,115.27,115.25,12.93039194]
[1644309418662,0.00076928,115.27,115.25,13.18039194]
[1644309419254,0.00076928,115.27,115.25,26.18809194]
[1644309419458,0.00076928,115.27,115.25,13.18039194]
[1644309420656,0.00076928,115.27,115.25,19.31059194]
[1644309421457,0.00076928,115.27,115.25,21.13747528]
[1644309421856,0.00076928,115.27,115.25,19.31059194]
[1644309422057,0.00076928,115.27,115.25,12.93039194]
[1644309422257,0.00076928,115.27,115.25,13.18039194]
[1644309422457,0.00076928,115.27,115.25,14.99840673]
[1644309422658,0.00076928,115.27,115.25,13.18039194]
[1644309423058,13.0099,115.35,115.25,13.18039194]
[1644309423558,13.0099,115.35,115.25,19.56059194]
[1644309423958,19.0099,115.35,115.25,13.18039194]
[1644309424459,19.0099,115.35,115.25,2.44039194]
[1644309424759,19.0099,115.35,115.23,10.49]
[1644309424959,13.0137,115.31,115.21,10.74]
[1644309426060,13.0137,115.31,115.21,12.55801479]
[1644309426460,13.04250784,115.33,115.21,12.55801479]
[1644309426661,13.0121,115.33,115.21,12.55801479]
[1644309426860,13.04250784,115.33,115.21,12.55801479]
[1644309427059,13.04250784,115.33,115.21,18.55801479]
[1644309427863,13.29250784,115.33,115.21,31.57061479]
[1644309428464,13.29250784,115.33,115.21,46.99953614]
[1644309429065,19.29250784,115.33,115.21,46.99953614]
[1644309429564,6.03040784,115.33,115.21,178.13953614]
[1644309429765,6.03040784,115.33,115.21,196.50307894]
[1644309430067,6.03040784,115.33,115.21,185.94106415]
[1644309430265,6.03040784,115.33,115.21,39.18152135]
[1644309430466,0.03040784,115.33,115.21,39.18152135]
[1644309430664,2.35865527,115.35,115.21,39.18152135]
[1644309430865,2.35865527,115.35,115.21,10.49]
[1644309430866,13.0113,115.33,115.21,10.49]
[1644309431065,13.04170784,115.33,115.19,10.49]
[1644309431665,23.53170784,115.33,115.19,10.49]
[1644309432065,23.78170784,115.33,115.19,12.30358783]
[1644309432666,29.78170784,115.33,115.19,12.30358783]
[1644309432868,29.78170784,115.33,115.19,10.74]
[1644309433570,29.78170784,115.33,115.19,10.49]
[1644309434668,2.33860256,115.32,115.19,10.49]
[1644309434868,13.0178,115.29,115.19,10.49]
[1644309435069,13.0178,115.29,115.14,1.81020939]
[1644309435269,13.04820784,115.29,115.16,10.49]
[1644309435470,0.03040784,115.28,115.16,10.49]
[1644309435670,0.03040784,115.29,115.16,10.49]
[1644309435872,4.339,115.31,115.16,10.49]
[1644309435873,0.03040784,115.28,115.16,10.49]
[1644309436070,0.03040784,115.29,115.16,10.49]
[1644309436270,0.03040784,115.28,115.16,10.49]
[1644309436470,13.0218,115.25,115.16,10.49]
[1644309437488,13.04890784,115.27,115.16,12.30020939]
[1644309437671,13.0185,115.27,115.16,12.30020939]
[1644309438069,13.0185,115.27,115.16,12.55020939]
[1644309438670,13.2685,115.27,115.16,12.55020939]
[1644309438871,13.2685,115.27,115.16,25.56870939]
[1644309439371,13.2685,115.27,115.16,25.31870939]
[1644309439573,13.2685,115.27,115.16,10.49]
[1644309439774,2.34687922,115.26,115.14,1.81020939]
[1644309439972,2.34687922,115.26,115.1,10.49]
[1644309439973,13.0272,115.22,115.1,10.49]
[1644309440374,13.05760784,115.22,115.1,10.49]
[1644309441276,13.05760784,115.22,115.06,29.29030939]
[1644309441482,13.05760784,115.22,115.04,10.49]
[1644309441483,13.0333,115.17,115.04,10.49]
[1644309441677,25.0073,115.17,115.04,6.39185]
[1644309442074,25.0073,115.17,115.02,10.49]
[1644309442378,25.2573,115.17,115.04,1.81020939]
[1644309442577,13.2833,115.17,115.04,12.30020939]
[1644309442974,13.2833,115.17,115.04,18.30020939]
[1644309443273,13.0333,115.17,115.04,18.30020939]
[1644309443475,19.0333,115.17,115.04,18.55020939]
[1644309443677,19.0333,115.17,115.04,31.58190939]
[1644309444279,19.2833,115.17,115.04,31.58190939]
[1644309445177,19.0333,115.17,115.04,31.58190939]
[1644309446779,13.0333,115.17,115.04,44.49821963]
[1644309446979,19.0333,115.17,115.04,44.49821963]
[1644309448078,6.0,115.17,115.04,44.49821963]
[1644309448480,13.0281,115.19,115.04,44.49821963]
[1644309449482,13.2781,115.19,115.04,44.49821963]
[1644309450086,13.2781,115.19,115.04,44.24821963]
[1644309450479,10.793509,115.19,115.04,44.24821963]
[1644309450682,16.793509,115.19,115.04,44.24821963]
[1644309451081,16.793509,115.19,115.04,25.33190939]
[1644309451281,18.90126449,115.19,115.04,10.49]
[1644309451483,16.793509,115.19,115.04,10.49]
[1644309451682,16.793509,115.19,115.05,1.81386777]
[1644309451881,16.793509,115.19,115.06,10.49]
[1644309452284,16.793509,115.19,115.07,1.81386777]
[1644309452489,16.793509,115.19,115.07,12.30386777]
[1644309452782,16.793509,115.19,115.07,25.33286777]
[1644309453183,16.793509,115.19,115.08,1.81386777]
[1644309453382,16.793509,115.19,115.09,10.49]
[1644309453787,25.0,115.17,114.96,113.1]
[1644309453986,13.0371,115.12,114.97,4.53440606]
[1644309454284,21.98658722,115.12,114.97,4.53440606]
[1644309454485,9.346,115.11,114.97,4.53440606]
[1644309454686,10.49,115.1,114.93,499.09551968]
[1644309454887,4.347,115.09,114.93,499.09551968]
[1644309455086,27.20575549,115.09,114.92,14.834]
[1644309455286,27.20575549,115.09,114.91,34.7336]
[1644309455486,2.10775549,115.08,114.91,34.7336]
[1644309455686,17.3941,115.07,114.91,34.7336]
[1644309455887,27.8841,115.07,114.89,150.10908171]
[1644309456088,28.1341,115.07,114.89,156.10908171]
[1644309456389,28.1341,115.07,114.89,142.50631024]
[1644309456587,30.24185549,115.07,114.89,142.50631024]
[1644309456786,30.24185549,115.07,114.89,126.01631024]
[1644309456989,30.24185549,115.07,114.89,113.1]
[1644309457488,13.57057302,115.06,114.86,23.6589]
[1644309457688,13.057,115.0,114.86,6.0]
[1644309457889,23.547,115.0,114.86,6.0]
[1644309458088,25.65475549,115.0,114.83,18.91631024]
[1644309458287,23.547,115.0,114.83,18.91631024]
[1644309458489,13.057,115.0,114.86,12.91631024]
[1644309458692,13.057,115.0,114.86,29.65631024]
[1644309460194,13.0488,115.02,114.86,29.65631024]
[1644309460395,13.0488,115.02,114.86,43.25908171]
[1644309460995,13.0488,115.02,114.86,29.65631024]
[1644309461396,19.2988,115.02,114.86,29.65631024]
[1644309462694,19.2988,115.02,114.86,42.70581024]
[1644309465598,6.0,115.02,114.86,47.05581024]
[1644309465998,13.0463,115.04,114.86,47.05581024]
[1644309466198,13.0463,115.04,114.87,113.1]
[1644309466398,13.0463,115.04,114.89,13.0466]
[1644309466598,13.0463,115.04,114.9,10.49]
[1644309466800,13.0463,115.04,114.9,10.74]
[1644309467001,13.0463,115.04,114.9,16.74]
[1644309467199,13.044,115.06,114.9,29.65631024]
[1644309467418,43.477,115.1,114.91,4.348]
[1644309467619,14.838,115.14,114.95,13.0406]
[1644309467817,6.42561,115.13,114.96,10.49]
[1644309468215,6.42561,115.13,114.96,16.74]
[1644309468415,13.0384,115.11,114.96,10.74]
[1644309468816,15.14615549,115.11,114.96,10.74]
[1644309469217,15.39615549,115.11,114.96,10.74]
[1644309469616,21.39615549,115.11,114.96,10.74]
[1644309469816,25.74215549,115.11,114.96,10.74]